Cogmind - Beta 14 @@@ ROGUE MODE // 2024.11.24 @ 14:33:38 Player: Fangrelle Result: Destroyed by as-50946 with Assembled Rifle Performance ------------- Evolutions (0) 0 Regions Visited (2) 400 Robots Destroyed (17) 85 Value Destroyed (263) 263 Prototype IDs (0) 0 Alien Tech Used (0) 0 Bonus (0) 0 TOTAL SCORE: 748 Bonus ------- None Cogmind --------- Core Integrity 0/250 Matter 290/300 Energy 100/100 System Corruption 0% Temperature Cool (0) Movement Rolling (105) Ox1 Location -10/Mines Parts ------- > --- POWER (1) -------- (None) > --- PROPULSION (2) --- Wheel Compact Wheel > --- UTILITY (2) ------ High-capacity Storage Unit Targeting Computer > --- WEAPON (2) ------- Hammer > --- INVENTORY (20) --- Experimental Sensor Array Signal Interpreter Targeting Computer Targeting Computer Targeting Computer Targeting Computer Targeting Computer Utility Shielding Mining Laser Peak State ------------ > --- POWER ------------ Improved Ion Engine > --- PROPULSION ------- Light Treads Light Treads > --- UTILITY ---------- High-capacity Storage Unit Targeting Computer > --- WEAPON ----------- Heavy Assault Rifle Heavy Assault Rifle > --- INVENTORY -------- Light Treads Compact Wheel Experimental Sensor Array Signal Interpreter Targeting Computer Targeting Computer Targeting Computer Targeting Computer Targeting Computer Utility Shielding EM Pulse Gun Mining Laser [Rating: 12] Favorites ----------- Power Ion Engine Engine Ion Engine Propulsion Light Treads Treads Light Treads Leg Aluminum Leg Wheel Compact Wheel Utility High-capacity Storage Unit Storage High-capacity Storage Unit Processor Targeting Computer Weapon Light Assault Rifle Energy Gun EM Pulse Gun Ballistic Gun Light Assault Rifle Impact Weapon Hammer Build | -11 -10 -10 ------- Run | Yrd Mat Min Slots Evolved . | . . . Power . | . . . Propulsion . | . . . Utility . | . . . Weapon . | . . . Parts Attached 16 | . 4 12 Power 2 | . 1 1 Engine 2 | . 1 1 Core . | . . . Reactor . | . . . Propulsion 6 | . 2 4 Treads 4 | . 2 2 Leg . | . . . Wheel 2 | . . 2 Hover . | . . . Flight . | . . . Utility 2 | . 1 1 Device . | . . . Storage 1 | . 1 . Processor 1 | . . 1 Hackware . | . . . Protection . | . . . Artifact . | . . . Weapon 6 | . . 6 Energy Gun 2 | . . 2 Energy Cannon . | . . . Ballistic Gun 3 | . . 3 Ballistic Cannon . | . . . Launcher . | . . . Special Weapon . | . . . Impact Weapon 1 | . . 1 Slashing Weapon . | . . . Piercing Weapon . | . . . Special Melee Weapon . | . . . Unidentified Prototypes . | . . . Parts Lost 9 | . . 9 Power 2 | . . 2 Propulsion 3 | . . 3 Utility . | . . . Weapon 4 | . . 4 Highest Loss Streak 7 | . . 7 To Critical Strikes . | . . . Average Slot Usage (%) 83 | . 88 81 Engine 8 | . 14 7 Treads 17 | . 17 17 Leg 2 | . 10 . Wheel 7 | . . 9 Storage 15 | . 17 14 Processor 6 | . . 8 Energy Gun 1 | . . 2 Ballistic Gun 18 | . 28 15 Impact Weapon 3 | . . 4 Peak Build Rating 12 | . 7 12 Average Rating 7 | . 6 7 On Entrance 6 | 6 6 7 Naked Turns . | . . . Heaviest Build 53 | 10 52 53 Greatest Support 40 | 20 40 40 Greatest Overweight (x) 2 | . 1 2 Average Overweight (x) . | . . 1 Largest Inventory Capacity 20 | . 20 20 Average Capacity 18 | . 10 20 Most Carried 12 | . 6 12 Average Carried 7 | . 3 8 Final Capacity 20 | 8 20 20 Final Carried 9 | 6 4 9 Class Distribution -------------------- 86% | Mutant 13% | Scavenger-Mutant Dominant Class ---------------- Mutant | -10/Materials Mutant | -10/Mines Resources | -11 -10 -10 ----------- Run | Yrd Mat Min Matter Collected 443 | 200 56 187 Remotely . | . . . Salvage Created 349 | . 95 254 Parts 28 | . 10 18 Haulers Intercepted . | . . . Recyclers Shooed 1 | . 1 . Parts Field Recycled . | . . . Retrieved Matter . | . . . Parts Self-Destructed . | . . . Prevented . | . . . Kills | -11 -10 -10 ------- Run | Yrd Mat Min Combat Hostiles Destroyed 15 | . 5 10 Guns 14 | . 5 9 AOE 1 | . . 1 Classes Destroyed 5 | . 2 3 Worker 1 | . . 1 Operator 1 | . 1 . Swarmer 12 | . 5 7 Grunt 2 | . . 2 Sentry 1 | . . 1 Best Kill Streak 5 | . 5 4 Combat Bots Only 5 | . 5 3 Max Kills in Single Turn 2 | . 1 2 Gunslinging 1 | . . 1 Exploded 1 | . . 1 Melee . | . . . Uniques/NPCs Destroyed . | . . . Combat | -11 -10 -10 -------- Run | Yrd Mat Min Hostile Shots Fired 100 | . 23 77 Missed 20 | . 8 12 Damage Taken 1270 | . 120 1150 Core 250 | . 13 237 Absorbed by Shields . | . . . Core Remaining (%) 100 | 100 . . Volleys Fired 48 | . 18 30 Largest 2 | . 2 2 Hottest 63 | . 40 63 Shots Fired 93 | . 36 57 Gun 93 | . 36 57 Cannon . | . . . Launcher . | . . . Special . | . . . Kinetic 82 | . 36 46 Thermal . | . . . Explosive . | . . . Electromagnetic 11 | . . 11 Robot Hit Streak 10 | . 5 10 Robot Miss Streak 6 | . 6 3 Penetration Max . | . . . Secondary Targets 1 | . . 1 Max Gunslinging Chain 1 | . . 1 Shots Hit Robots 57 | . 17 40 Core Hits 31 | . 12 19 Critical Kills . | . . . Critical Parts Destroyed . | . . . Critical Strikes . | . . . Melee Attacks 1 | . . 1 Impact 1 | . . 1 Slashing . | . . . Piercing . | . . . Sneak Attacks 1 | . . 1 Combat Hostiles . | . . . Follow-up Attacks . | . . . Damage Inflicted 809 | . 153 656 Guns 625 | . 153 472 Cannons . | . . . Explosions 132 | . . 132 Melee 52 | . . 52 Ramming . | . . . Kinetic 526 | . 153 373 Thermal 132 | . . 132 Explosive . | . . . Electromagnetic 99 | . . 99 Impact 52 | . . 52 Slashing . | . . . Piercing . | . . . Highest Corruption . | . . . Average Corruption . | . . . Corruption Purged . | . . . Corruption Blocked . | . . . Overload Shots . | . . . Overflow Damage 12 | . . 12 Projectiles . | . . . Explosions . | . . . Melee 12 | . . 12 Knockbacks 1 | . . 1 Impact 1 | . . 1 Kinetic . | . . . Secondary . | . . . Self-Inflicted Damage . | . . . Shots . | . . . Rammed . | . . . Targets Rammed . | . . . Kicked . | . . . Crushed . | . . . Highest Temperature 41 | . . 41 Average Temperature 12 | . . 12 Received Heat Transfer 204 | . . 204 Siege Activations . | . . . Robots Corrupted . | . . . Combat Hostiles . | . . . Parts Fried . | . . . Impact Corruptions 1 | . . 1 Robots Melted . | . . . Combat Hostiles . | . . . Parts Melted . | . . . Heat Transferred 200 | . . 200 Parts Sabotaged . | . . . Parts Stolen . | . . . Parts Stripped . | . . . Power Chain Reactions 1 | . . 1 Alert | -11 -10 -10 ------- Run | Yrd Mat Min Peak Influence 308 | . 249 308 Initial 96 | . . 96 Average 145 | . 141 146 Maximum Alert Level 1 | . 1 1 Low Security (%) 79 | . 53 86 Level 1 20 | . 46 13 Level 2 . | . . . Level 3 . | . . . Level 4 . | . . . Level 5 . | . . . High Security . | . . . Max Security . | . . . Squads Dispatched 1 | . 1 . Investigation . | . . . Extermination . | . . . Reinforcement 1 | . 1 . Assault . | . . . Garrison . | . . . Intercept . | . . . Searches Triggered . | . . . Construction Impeded . | . . . Haulers Reinforced . | . . . Active Scanning Responses . | . . . Cargo Convoy Interrupts . | . . . Stealth | -11 -10 -10 --------- Run | Yrd Mat Min Distress Signals 1 | . . 1 Communications Jammed . | . . . Distress Signals . | . . . Times Spotted 33 | . 12 21 Peak Tracking Total 7 | . 7 6 Tactical Retreats 3 | . 3 . Traps | -11 -10 -10 ------- Run | Yrd Mat Min Traps Triggered . | . . . Indirectly . | . . . Trap Hack Attempts . | . . . Triggered . | . . . Disarmed . | . . . Reprogrammed . | . . . Reused . | . . . Traps Extracted . | . . . Installed . | . . . Triggered . | . . . Machines | -11 -10 -10 ---------- Run | Yrd Mat Min Machines Disabled . | . . . Max in Single Turn . | . . . Machines Repaired . | . . . Machines Dismantled . | . . . Machines Sabotaged . | . . . Overloaded Fab Kills . | . . . Hacking | -11 -10 -10 --------- Run | Yrd Mat Min Machines Accessed 2 | . 2 . Terminals 2 | . 2 . Fabricators . | . . . Repair Stations . | . . . Recycling Units . | . . . Scanalyzers . | . . . Garrison Access . | . . . Total Hacks 5 | . 5 . Successful 2 | . 2 . Failed 3 | . 3 . Catastrophic 1 | . 1 . Database Lockouts . | . . . Manual 5 | . 5 . Terminals 5 | . 5 . Fabricators . | . . . Repair Stations . | . . . Recycling Units . | . . . Scanalyzers . | . . . Garrison Access . | . . . Terminal Hacks . | . . . Fabricator Hacks . | . . . Repair Station Hacks . | . . . Recycling Unit Hacks . | . . . Scanalyzer . | . . . Garrison Access Hacks . | . . . Unauthorized Hacks 2 | . 2 . Terminals 2 | . 2 . Botnet 2 | . 2 . Fabricators . | . . . Repair Stations . | . . . Recycling Units . | . . . Scanalyzers . | . . . Garrison Access . | . . . Data Cores Recovered 1 | . 1 . Used . | . . . Hacking Detections 2 | . 2 . Full Trace Events . | . . . Feedback Events . | . . . Feedback Blocked . | . . . Robot Schematics Acquired . | . . . Robots Built . | . . . Authchips . | . . . Time . | . . . Total Robot Build Rating . | . . . Part Schematics Acquired . | . . . Parts Built . | . . . Authchips . | . . . Time . | . . . Total Part Build Rating . | . . . Parts Repaired . | . . . Time . | . . . Parts Recycled . | . . . Recycled Matter . | . . . Retrieved Matter . | . . . Retrieved Components . | . . . Parts Scanalyzed . | . . . Part Schematics Acquired . | . . . Parts Damaged . | . . . Bothacking | -11 -10 -10 ------------ Run | Yrd Mat Min Used RIF Installer . | . . . Robots Hacked . | . . . Non-combat . | . . . Combat . | . . . Robot Hacks Applied . | . . . Relay Couplers Released . | . . . Fabnet Peak Effective % . | . . . Robots Rewired . | . . . Allies Hacked . | . . . Hacks Repelled . | . . . Allies | -11 -10 -10 -------- Run | Yrd Mat Min Total Allies . | . . . Largest Group . | . . . Highest-Rated Group . | . . . Highest-Rated Ally . | . . . Total Orders . | . . . Ally Attacks . | . . . Total Damage . | . . . Kills . | . . . Allies Corrupted . | . . . Allies Melted . | . . . Intel | -11 -10 -10 ------- Run | Yrd Mat Min Robot Analysis Total . | . . . Derelict Logs Recovered 2 | . . 2 Drone Launches . | . . . Drone Recoveries . | . . . Exploration | -11 -10 -10 ------------- Run | Yrd Mat Min Turns Passed 889 | . 184 705 Spaces Moved 452 | 1 80 371 Core . | . . . Treads 188 | . 38 150 Legs 43 | 1 42 . Wheels 221 | . . 221 Hover . | . . . Flight . | . . . Fastest Speed 105 | 120 120 105 Average Speed 159 | 120 156 159 Slowest Speed 240 | 120 240 240 Overloaded Moves . | . . . Propulsion Burnouts . | . . . Robots Hopped . | . . . Cave-ins Triggered . | . . . Exploration Rate (%) 29 | 2 23 62 Regions Visited 2 Branch Regions 1 Pre-discovered Areas . | . . . Known Exits Taken . | . . . Unknown Exits Taken 2 | 1 1 . Scrap Searched 2 | . . 2 Spaces Dug . | . . . Terrain Destroyed 2 | . . 2 Melee . | . . . Projectile . | . . . AOE 2 | . . 2 Terrain Rammed . | . . . Walls Destroyed . | . . . Machines Disabled . | . . . Actions | -11 -10 -10 --------- Run | Yrd Mat Min Total 540 | . 112 428 Wait 4 | . 4 . Move 450 | . 79 371 Hop . | . . . Pick Up 12 | . 2 10 Fast Attach 5 | . 1 4 Attach 5 | . . 5 Detach . | . . . Swap 6 | . 3 3 Drop 9 | . 5 4 Fire 48 | . 18 30 Melee 1 | . . 1 Ram . | . . . Kick . | . . . Crush . | . . . Escape Stasis . | . . . Rewire . | . . . Trap . | . . . Miscellaneous . | . . . Route ------- -11/Scrapyard -10/Materials -10/Mines (discovered 1 exit: [*Mat]) History --------- Turn | Location | Event 1 | -11/Scrapyard | Discovered new exit (range 0) 1 | -11/Scrapyard | Entered Materials 160 | -10/Materials | Discovered new exit (range 7) 185 | -10/Materials | Entered Mines 300 | -10/Mines | Build established: Mutant 404 | -10/Mines | Learned 4 Materials zone layouts 516 | -10/Mines | Discovered new exit (range 13) 551 | -10/Mines | Core integrity fell below 50% 566 | -10/Mines | Learned 4 Materials zone layouts 595 | -10/Mines | Found a damaged Exp. Sensor Array with a note attached 600 | -10/Mines | Found Prototype Device 618 | -10/Mines | Assembled infested the area 649 | -10/Mines | Core integrity fell below 20% 681 | -10/Mines | Lost 7 parts (1p3n3w) 890 | -10/Mines | Destroyed by as-50946 with Assembled Rifle Last Messages --------------- 00656_ Acquired Wheel. 00657_ The unstable cave ceiling collapses. 00657_ U-05 Engineer lays Concrete. 00658_ U-05 Engineer builds a Wall. 00658_ K-01 Serf collects debris. 00662_ Acquired 45 matter. 00662_ K-01 Serf collects debris. 00662_ U-05 Engineer lays Concrete. 00665_ The unstable cave ceiling collapses. 00665_ K-01 Serf collects debris. 00665_ U-05 Engineer builds a Wall. 00669_ K-01 Serf collects debris. 00669_ U-05 Engineer lays Concrete. 00672_ U-05 Engineer builds a Wall. 00675_ Acquired Hammer. 00690_ Sneak attack on T-07 Excavator. 00690_ Destroyed Wheel. 00690_ T-07 Excavator system corrupted by crushing effect. 00690_ T-07 Excavator knocked back. 00772_ K-01 Serf collects debris. Map ----- +----------------------------------------------------+ | ##????????????????????## #????## % # | | #?????????????????????# #????# ## | | ##?????????????????????# #????# ###? | | #?????????# ???????????## #????# ##??? | | #????????? ?????????## ###### #???? | | ##????????? ?????????## #???? | | #?????????? < ????????## #???? | | ?????????## ??????### ######### #???? | | ????????## ??????## ##???????## #???? | | ????????# ???????# #?????????###???? | | ????????# ????????# ##??###??????????? | | ???????## #?????????# ##??? ##?????????? | | ??????## #??????????# ##???? ##????????? | | ?????## #??????????# ##????# ##???????? | | ????## ##?????????## ###### #???????? | | ##### ##?????????### ## ##??????? | | #??######???### ##?????? | | ####"[ "##????## #?????? | | ##### % %! ## [[ #?????###### #?????? | | ????## [ ## [%! #??????????## ##?????? | | ?????## ###=% ###!%[ ##??????????## ##??????? | | ??????# ####!!%###++###?????????## ##???????? | | ??????# #??#!!* !%=%=#????????## ##????????? | | ??????# #??# ! ########## ##?????????? | | ??????# #??# a *% t #??????????? | | ####### #??## @k= #??????????? | | #??## #### #?????????? | | ############# #??## #????????? | | ??????????# #???## #????????? | | ?????????# #???### ##????????? | | ?????????# ##?????####?????????? | | ?????????## ###???????????????????? | | ??????????############ ##?????????????????????? | | ?????????????????????######??????????????????????? | | ?????????????????????????????????????????????????? | | | | | | | | | | | | | | | | | | | | | | | | | | | | | | | +----------------------------------------------------+ Best States ------------- Heat Dissipation 25 Energy Generation 12 Energy Capacity 265 Matter Stores 300 Matter Capacity 300 Sight Range 16 Terrain Scan Density 10 Evasion (%) 55 Targeting Accuracy 5 Recoil Reduction 2 Item Schematics ----------------- None Robot Schematics ------------------ None Fabricated ------------ Nothing Alien Tech Used ----------------- None Achievements -------------- None Challenges ------------ None Game ------ Seed CryofiberComponentFirepult Manual? 0 Play Time 00:07:01 Cumulative 133.0 hours Start 2024.11.24 @ 14:29:24 End 2024.11.24 @ 14:33:38 Sessions 1 Manual Loads 0 Difficulty Rogue Special Mode None Game No. 250 Rogue 250 Adventurer 0 Explorer 0 Win Type - Total 0 Types 0/0/0/0/0/0/0/0/0 Lore% 43 Gallery% 41 Achievement% 36 Wizard Run 0 Options --------- Layout 0 ASCII 0 Keyboard 0 Movement Mouse Keybinds 0 Fullscreen 1 Font 24/Smallcaps Map View 91x25 Zoom Use 100% Tactical HUD 1 Map Filters NONE Filters NONE Steam 1 RUN: 4b987c71-d3c9-4d2e-81d6-95536ece078c